fUSD/lending_fUSD_20240404
["ID","MTS","AMOUNT","RATE_DAILY","PERIOD"]
[321450514,1712196653059,-295.57,0.00054,120]
[321450515,1712196653068,-1060.7,0.00054,7]
[321450516,1712196653078,-1103.62,0.00054,30]
[321450517,1712196653087,-600.0,0.00054,55]
[321450518,1712196653096,-1034.0,0.00054,102]
[321450519,1712196653105,-292.23916669,0.0005404,60]
[321450520,1712196653114,-151.29625457,0.00054055,60]
[321450521,1712196653123,-150.0,0.0005408,7]
[321450522,1712196653132,-889.8,0.00054081,2]
[321450523,1712196653141,-500.0,0.00054096,30]
[321450524,1712196653151,-2000.0,0.000541,120]
[321450525,1712196653160,-152.11,0.000541,7]
[321450526,1712196653169,-152.11,0.000541,7]
[321450527,1712196653178,-152.11,0.000541,7]
[321450528,1712196653187,-152.11,0.000541,7]
[321450529,1712196653196,-152.11,0.000541,7]
[321450530,1712196653205,-152.11,0.000541,7]
[321450531,1712196653214,-152.11,0.000541,7]
[321450532,1712196653222,-152.11,0.000541,7]
[321450533,1712196653231,-152.11,0.000541,7]
[321450534,1712196653240,-152.11,0.000541,7]
[321450535,1712196653250,-152.11,0.000541,7]
[321450536,1712196653259,-152.11,0.000541,7]
[321450537,1712196653268,-152.11,0.000541,7]
[321450538,1712196653277,-152.11,0.000541,7]
[321450539,1712196653285,-152.11,0.000541,7]
[321450540,1712196653294,-152.11,0.000541,7]
[321450541,1712196653303,-152.11,0.000541,7]
[321450542,1712196653312,-152.11,0.000541,7]
[321450543,1712196653321,-152.11,0.000541,7]
[321450544,1712196653330,-152.11,0.000541,7]
[321450545,1712196653339,-152.11,0.000541,7]
[321450546,1712196653348,-152.11,0.000541,7]
[321450547,1712196653357,-152.11,0.000541,7]
[321450548,1712196653367,-152.11,0.000541,7]
[321450549,1712196653376,-7318.39,0.000541,7]
[321450550,1712196653385,-7318.39,0.000541,7]
[321450551,1712196653395,-7318.39,0.000541,7]
[321450552,1712196653404,-7318.39,0.000541,7]
[321450553,1712196653413,-7318.39,0.000541,7]
[321450554,1712196653422,-7318.39,0.000541,7]
[321450555,1712196653431,-7318.39,0.000541,7]
[321450556,1712196653440,-7318.39,0.000541,7]
[321450557,1712196653449,-7318.39,0.000541,7]
[321450558,1712196653459,-7318.39,0.000541,7]
[321450559,1712196653468,-7318.39,0.000541,7]
[321450560,1712196653478,-7318.39,0.000541,7]
[321450561,1712196653487,-7318.39,0.000541,7]
[321450562,1712196653498,-7318.39,0.000541,7]
[321450563,1712196653507,-7318.39,0.000541,7]
[321450564,1712196653516,-7318.39,0.000541,7]
[321450565,1712196653526,-7318.39,0.000541,7]
[321450566,1712196653536,-7318.39,0.000541,7]
[321450567,1712196653545,-7318.39,0.000541,7]
[321450568,1712196653555,-7318.39,0.000541,7]
[321450569,1712196653564,-541.680223,0.000541,14]
[321450570,1712196653575,-150.0,0.000541,11]
[321450571,1712196653584,-150.0,0.00054108,7]
[321450572,1712196653594,-514.0,0.00054109,120]
[321450573,1712196653604,-540.0,0.00054109,120]
[321450574,1712196653614,-973.63738149,0.0005411,120]
[321450575,1712196653624,-150.0,0.00054112,7]
[321450576,1712196653634,-150.0,0.00054122,7]
[321450577,1712196653643,-150.0,0.00054123,7]
[321450578,1712196653653,-150.0,0.00054143,7]
[321450579,1712196653663,-2923.05947,0.00054152,30]
[321450580,1712196653672,-150.0,0.00054157,120]
[321450581,1712196653682,-500.04043963,0.00054164,120]
[321450582,1712196653691,-151.0,0.00054164,120]
[321450583,1712196653701,-150.0,0.00054181,7]
[321450584,1712196653711,-150.0,0.0005419,7]
[321450585,1712196653721,-22208.31125977,0.0005419,120]
[321450586,1712196653733,-157.040411,0.00054194,116]
[321450587,1712196653745,-150.0,0.00054195,7]
[321450588,1712196653757,-300.0,0.00054199,2]
[321450589,1712196653767,-300.0,0.00054199,2]
[321450590,1712196653777,-300.0,0.00054199,2]
[321450591,1712196653787,-300.0,0.00054199,2]
[321450592,1712196653797,-300.0,0.00054199,2]
[321450593,1712196653806,-181.94333965,0.00054199,2]
[321450594,1712196653817,-2000.0,0.000542,120]
[321450595,1712196653827,-2000.0,0.000542,120]
[321450596,1712196653837,-2000.0,0.000542,120]
[321450597,1712196653847,-1034.808893,0.000542,120]
[321450598,1712196653856,-2000.0,0.000542,120]
[321450599,1712196653866,-176.34670904,0.00054205,60]
[321450600,1712196653876,-155.41052791,0.00054208,60]
[321450601,1712196653886,-150.0,0.00054211,7]
[321450602,1712196653896,-159.10975518,0.00054216,60]
[321450603,1712196653906,-151.0,0.00054219,120]
[321450604,1712196653916,-153.79214004,0.00054231,60]
[321450605,1712196653925,-150.0,0.0005424,7]
[321450606,1712196653935,-167.16098968,0.00054242,60]
[321450607,1712196653945,-514.0,0.00054246,120]
[321450608,1712196653955,-542.0,0.00054246,120]
[321450609,1712196653965,-2129.0,0.00054246,120]
[321450610,1712196653975,-958.96,0.00054246,30]
[321450611,1712196653985,-1000.0,0.000543,7]
[321450612,1712196653994,-292.23916669,0.00054303,60]
[321450613,1712196654005,-292.23916669,0.00054307,60]
[321450614,1712196654015,-150.0,0.00054308,7]
[321450615,1712196654025,-150.0,0.00054308,7]
[321450616,1712196654034,-211.99904312,0.00054319,60]
[321450617,1712196654044,-154.29309457,0.00054329,120]
[321450618,1712196654054,-973.63738149,0.00054329,120]
[321450619,1712196654064,-152.06145661,0.00054329,120]
[321450620,1712196654073,-154.06850799,0.00054333,60]
[321450621,1712196654083,-150.0,0.00054341,7]
[321450622,1712196654092,-2110.0,0.00054352,15]
[321450623,1712196654102,-876.3897,0.00054352,7]
[321450624,1712196654111,-489.8,0.00054379,120]
[321450625,1712196654121,-150.0,0.00054382,7]
[321450626,1712196654131,-516.0,0.00054383,120]
[321450627,1712196654140,-20000.0,0.00054383,120]
[321450628,1712196654150,-17315.36534204,0.00054383,120]
[321450629,1712196654159,-150.0,0.00054384,7]
[321450630,1712196654169,-150.0,0.00054389,7]
[321450631,1712196654178,-400.70968906,0.00054394,120]
[321450632,1712196654188,-508.5998955,0.00054394,120]
[321450633,1712196654197,-155.0,0.00054396,60]
[321450634,1712196654207,-160.20412195,0.00054397,60]
[321450635,1712196654217,-2000.0,0.000544,120]
[321450636,1712196654227,-682.44572178,0.000544,110]
[321450637,1712196654237,-153.89032083,0.00054417,60]
[321450638,1712196654248,-212.0,0.0005443,30]
[321450639,1712196654259,-510.18312938,0.00054433,60]
[321450640,1712196654269,-200.0,0.00054435,15]
[321450641,1712196654278,-1249.96692148,0.00054435,7]
[321450642,1712196654288,-200.0,0.00054435,15]
[321450643,1712196654298,-150.0,0.00054447,7]
[321450644,1712196654307,-150.0,0.00054454,7]
[321450645,1712196654317,-998.45,0.00054466,120]
[321450646,1712196654327,-153.89032083,0.00054469,60]
[321450647,1712196654337,-150.0,0.00054475,7]
[321450648,1712196654347,-510.18312938,0.00054479,60]
[321450649,1712196654357,-4731.18487151,0.0005448,30]
[321450650,1712196654367,-1000.0,0.00054482,90]
[321450651,1712196654377,-800.0,0.00054482,90]
[321450652,1712196654388,-154.06850799,0.00054484,60]
[321450653,1712196654397,-150.0,0.0005449,7]
[321450654,1712196654407,-388.42808272,0.0005449,60]
[321450655,1712196654417,-157.040411,0.00054494,116]
[321450656,1712196654427,-155.41052791,0.00054498,60]
[321450657,1712196654437,-292.23916669,0.00054498,60]
[321450658,1712196654447,-150.0,0.00054499,7]
[321450659,1712196654456,-2000.0,0.000545,120]
[321450660,1712196654466,-2000.0,0.000545,120]
[321450661,1712196654476,-1034.0,0.000545,103]
[321450662,1712196654485,-150.0,0.00054505,7]
[321450663,1712196654495,-300.0,0.00054509,7]
[321450664,1712196654506,-150.0,0.00054515,7]
[321450665,1712196654515,-238.86502259,0.00054516,60]
[321450666,1712196654524,-166.66666667,0.00054527,60]
[321450667,1712196654533,-388.42808272,0.00054531,60]
[321450668,1712196654543,-150.0,0.0005454,7]
[321450669,1712196654553,-510.18312938,0.00054547,60]
[321450670,1712196654563,-973.63738149,0.00054548,120]
[321450671,1712196654573,-2346.95780913,0.0005455,4]
[321450672,1712196654583,-2923.05947,0.00054552,30]
[321450673,1712196654593,-1151.67892422,0.00054553,45]
[321450674,1712196654603,-70981.34353079,0.00054553,45]
[321450675,1712196654613,-774.90990848,0.00054553,45]
[321450676,1712196654623,-150.0,0.00054553,7]
[321450677,1712196654632,-499.62114364,0.00054553,45]
[321450678,1712196654642,-70981.34353079,0.00054554,45]
[321450679,1712196654652,-1044.22073783,0.00054556,45]
[321450680,1712196654662,-90673.37908204,0.00054561,45]
[321450681,1712196654672,-604.22994504,0.00054561,60]
[321450682,1712196654681,-1156.50970057,0.00054562,45]
[321450683,1712196654691,-1151.67892422,0.00054562,45]
[321450684,1712196654701,-238.86502259,0.00054564,60]
[321450685,1712196654711,-499.62114364,0.00054565,45]
[321450686,1712196654721,-30467.23435936,0.00054567,45]
[321450687,1712196654737,-1044.22073783,0.00054568,45]
[321450688,1712196654749,-1156.50970057,0.00054569,45]
[321450689,1712196654760,-152.0,0.00054569,12]
[321450690,1712196654770,-70981.34353079,0.00054569,45]
[321450691,1712196654781,-774.90990848,0.0005457,45]
[321450692,1712196654791,-87072.78945988,0.00054572,45]
[321450693,1712196654801,-1044.22073783,0.00054575,45]
[321450694,1712196654810,-170.67025145,0.00054577,45]
[321450695,1712196654821,-30467.23435936,0.00054577,45]
[321450696,1712196654831,-1156.50970057,0.00054578,45]
[321450697,1712196654841,-499.62114364,0.00054579,45]
[321450698,1712196654851,-1500.0,0.0005458,7]
[321450699,1712196654861,-170.67025145,0.00054581,45]
[321450700,1712196654871,-70981.34353079,0.00054581,45]
[321450701,1712196654881,-90673.37908204,0.00054583,45]
[321450702,1712196654891,-774.90990848,0.00054585,45]
[321450703,1712196654901,-87072.78945988,0.00054586,45]
[321450704,1712196654911,-90673.37908204,0.00054587,45]
[321450705,1712196654922,-70981.34353079,0.00054588,45]
[321450706,1712196654932,-1044.22073783,0.00054588,45]
[321450707,1712196654942,-160.20412195,0.00054589,60]
[321450708,1712196654952,-90673.37908204,0.00054589,45]
[321450709,1712196654962,-160.0,0.0005459,10]
[321450710,1712196654972,-30467.23435936,0.00054591,45]
[321450711,1712196654981,-90673.37908204,0.00054592,45]
[321450712,1712196654992,-87072.78945988,0.00054592,45]
[321450713,1712196655007,-211.99904312,0.00054593,60]
[321450714,1712196655016,-1156.50970057,0.00054594,45]
[321450715,1712196655027,-150.0,0.00054595,7]
[321450716,1712196655037,-160.0,0.00054598,10]
[321450717,1712196655048,-1151.67892422,0.00054599,45]
[321450718,1712196655058,-774.90990848,0.00054599,45]
[321450719,1712196655068,-170.67025145,0.000546,45]
[321450720,1712196655078,-2000.0,0.000546,120]
[321450721,1712196655088,-300.0,0.000546,14]
[321450722,1712196655098,-150.0,0.000546,12]
[321450723,1712196655108,-774.90990848,0.00054602,45]
[321450724,1712196655118,-170.67025145,0.00054603,45]
[321450725,1712196655129,-1151.67892422,0.00054606,45]
[321450726,1712196655139,-151.29625457,0.00054607,60]
[321450727,1712196655149,-160.0,0.00054607,10]
[321450728,1712196655159,-170.67025145,0.00054608,45]
[321450729,1712196655169,-170.67025145,0.00054608,45]
[321450730,1712196655179,-170.67025145,0.0005461,45]
[321450731,1712196655190,-499.62114364,0.00054612,45]
[321450732,1712196655199,-1156.50970057,0.00054613,45]
[321450733,1712196655209,-1156.50970057,0.00054615,45]
[321450734,1712196655219,-160.0,0.00054616,10]
[321450735,1712196655229,-30467.23435936,0.00054617,45]
[321450736,1712196655239,-1151.67892422,0.00054618,45]
[321450737,1712196655252,-1151.67892422,0.00054618,45]
[321450738,1712196655262,-1151.67892422,0.00054618,45]
[321450739,1712196655272,-30467.23435936,0.00054618,45]
[321450740,1712196655282,-211.99904312,0.00054619,60]
[321450741,1712196655291,-90673.37908204,0.0005462,45]
[321450742,1712196655301,-70981.34353079,0.0005462,45]
[321450743,1712196655312,-90673.37908204,0.0005462,45]
[321450744,1712196655323,-1151.67892422,0.0005462,45]
[321450745,1712196655334,-90673.37908204,0.00054623,45]
[321450746,1712196655344,-1151.67892422,0.00054624,45]
[321450747,1712196655354,-500.0,0.00054624,30]
[321450748,1712196655364,-499.62114364,0.00054625,45]
[321450749,1712196655374,-774.90990848,0.00054625,45]
[321450750,1712196655384,-200.0,0.00054626,30]
[321450751,1712196655394,-200.0,0.00054626,30]
[321450752,1712196655405,-200.023535,0.00054626,30]
[321450753,1712196655418,-200.023535,0.00054626,30]
[321450754,1712196655427,-200.0,0.00054626,30]
[321450755,1712196655437,-200.0,0.00054626,30]
[321450756,1712196655447,-70981.34353079,0.00054626,45]
[321450757,1712196655458,-388.42808272,0.00054627,60]
[321450758,1712196655468,-1044.22073783,0.00054627,45]
[321450759,1712196655478,-87072.78945988,0.00054628,45]
[321450760,1712196655488,-70981.34353079,0.0005463,45]
[321450761,1712196655500,-499.62114364,0.0005463,45]
[321450762,1712196655509,-170.67025145,0.00054632,45]
[321450763,1712196655519,-153.89032083,0.00054633,60]
[321450764,1712196655528,-1156.50970057,0.00054634,45]
[321450765,1712196655538,-70981.34353079,0.00054634,45]
[321450766,1712196655548,-774.90990848,0.00054636,45]
[321450767,1712196655557,-30467.23435936,0.00054637,45]
[321450768,1712196655567,-1156.50970057,0.00054639,45]
[321450769,1712196655577,-499.62114364,0.00054639,45]
[321450770,1712196655587,-1044.22073783,0.0005464,45]
[321450771,1712196655597,-90673.37908204,0.0005464,45]
[321450772,1712196655607,-151.0,0.0005464,120]
[321450773,1712196655617,-198.86149,0.0005464,120]
[321450774,1712196655627,-152.94691,0.0005464,120]
[321450775,1712196655637,-198.86149,0.0005464,120]
[321450776,1712196655939,-151.0,0.0005464,120]
[321450777,1712196655950,-151.0,0.0005464,120]
[321450778,1712196655960,-338.216261,0.0005464,120]
[321450779,1712196655970,-338.216261,0.0005464,120]
[321450780,1712196655981,-151.0,0.0005464,120]
[321450781,1712196655990,-151.0,0.0005464,120]
[321450782,1712196655999,-151.0,0.0005464,120]
[321450783,1712196656009,-750.539528,0.0005464,30]
[321450784,1712196656018,-193.775026,0.0005464,120]
[321450785,1712196656027,-750.539528,0.0005464,30]
[321450786,1712196656037,-193.775026,0.0005464,120]
[321450787,1712196656047,-151.0,0.0005464,120]
[321450788,1712196656056,-223.76888,0.0005464,120]
[321450789,1712196656066,-151.0,0.0005464,120]
[321450790,1712196656076,-223.76888,0.0005464,120]
[321450791,1712196656085,-151.0,0.0005464,120]
[321450792,1712196656095,-151.0,0.0005464,120]
[321450793,1712196656104,-151.0,0.0005464,120]
[321450794,1712196656114,-361.491422,0.0005464,120]
[321450795,1712196656124,-361.491422,0.0005464,120]
[321450796,1712196656133,-151.0,0.0005464,60]
[321450797,1712196656142,-288.633246,0.0005464,120]
[321450798,1712196656152,-288.633246,0.0005464,120]
[321450799,1712196656162,-151.0,0.0005464,120]
[321450800,1712196656172,-151.0,0.0005464,120]
[321450801,1712196656182,-176.743414,0.0005464,120]
[321450802,1712196656192,-579.431877,0.0005464,120]
[321450803,1712196656202,-579.431877,0.0005464,120]
[321450804,1712196656211,-230.324354,0.0005464,120]
[321450805,1712196656221,-230.324354,0.0005464,120]
[321450806,1712196656230,-151.0,0.0005464,21]
[321450807,1712196656240,-151.0,0.0005464,120]
[321450808,1712196656251,-858.40166,0.0005464,30]
[321450809,1712196656262,-858.40166,0.0005464,30]
[321450810,1712196656272,-151.0,0.0005464,120]
[321450811,1712196656282,-151.0,0.0005464,120]
[321450812,1712196656292,-151.0,0.0005464,120]
[321450813,1712196656302,-151.0,0.0005464,120]
[321450814,1712196656311,-151.0,0.0005464,120]
[321450815,1712196656321,-240.331767,0.0005464,120]
[321450816,1712196656330,-151.0,0.0005464,120]
[321450817,1712196656340,-151.0,0.0005464,120]
[321450818,1712196656350,-151.0,0.0005464,120]
[321450819,1712196656359,-200.701774,0.0005464,120]
[321450820,1712196656369,-200.701774,0.0005464,120]
[321450821,1712196656379,-151.0,0.0005464,120]
[321450822,1712196656388,-151.0,0.0005464,120]
[321450823,1712196656398,-288.232808,0.0005464,120]
[321450824,1712196656408,-162.974525,0.0005464,120]
[321450825,1712196656417,-259.428547,0.0005464,120]
[321450826,1712196656427,-162.974525,0.0005464,120]
[321450827,1712196656436,-259.428547,0.0005464,120]
[321450828,1712196656446,-151.0,0.0005464,7]
[321450829,1712196656456,-151.0,0.0005464,120]
[321450830,1712196656465,-151.0,0.0005464,7]
[321450831,1712196656475,-154.138861,0.0005464,120]
[321450832,1712196656485,-151.0,0.0005464,120]
[321450833,1712196656494,-151.0,0.0005464,120]
[321450834,1712196656505,-151.0,0.0005464,120]
[321450835,1712196656515,-151.0,0.0005464,120]
[321450836,1712196656524,-229.451021,0.0005464,30]
[321450837,1712196656534,-151.0,0.0005464,120]
[321450838,1712196656543,-229.451021,0.0005464,30]
[321450839,1712196656553,-153.027108,0.0005464,120]
[321450840,1712196656563,-151.0,0.0005464,120]
[321450841,1712196656572,-151.0,0.0005464,120]
[321450842,1712196656581,-151.0,0.0005464,120]
[321450843,1712196656591,-87072.78945988,0.00054642,45]
[321450844,1712196656601,-151.0,0.00054642,120]
[321450845,1712196656611,-151.0,0.00054642,120]
[321450846,1712196656620,-151.0,0.00054642,120]
[321450847,1712196656629,-151.0,0.00054642,120]
[321450848,1712196656639,-292.667321,0.00054642,120]
[321450849,1712196656648,-292.667321,0.00054642,120]
[321450850,1712196656657,-151.0,0.00054642,120]
[321450851,1712196656666,-151.0,0.00054642,120]
[321450852,1712196656675,-151.0,0.00054642,120]
[321450853,1712196656685,-461.879019,0.00054642,120]
[321450854,1712196656694,-461.879019,0.00054642,120]
[321450855,1712196656703,-151.0,0.00054642,120]
[321450856,1712196656713,-30467.23435936,0.00054642,45]
[321450857,1712196656723,-67015.68244217,0.00054643,45]
[321450858,1712196657244,-20057.10701771,0.00054643,45]
[321450859,1712196657255,-87072.78945988,0.00054643,45]
[321450860,1712196657264,-151.0,0.00054643,120]
[321450861,1712196657273,-259.233093,0.00054643,7]
[321450862,1712196657282,-259.233093,0.00054643,7]
[321450863,1712196657292,-154.740271,0.00054643,120]
[321450864,1712196657302,-151.0,0.00054643,120]
[321450865,1712196657312,-1156.50970057,0.00054643,45]
[321450866,1712196657321,-499.62114364,0.00054644,45]
[321450867,1712196657331,-151.0,0.00054644,120]
[321450868,1712196657340,-151.0,0.00054644,120]
[321450869,1712196657349,-151.0,0.00054644,120]
[321450870,1712196657358,-151.0,0.00054644,120]
[321450871,1712196657367,-151.0,0.00054644,120]
[321450872,1712196657377,-151.0,0.00054644,120]
[321450873,1712196657387,-151.0,0.00054644,120]
[321450874,1712196657396,-151.0,0.00054644,120]
[321450875,1712196657405,-151.0,0.00054644,120]
[321450876,1712196657414,-279.871932,0.00054644,14]
[321450877,1712196657424,-279.871932,0.00054644,14]
[321450878,1712196657434,-151.0,0.00054644,120]
[321450879,1712196657443,-327.096245,0.00054644,120]
[321450880,1712196657453,-354.097611,0.00054644,120]
[321450881,1712196657463,-327.096245,0.00054644,120]
[321450882,1712196657473,-354.097611,0.00054644,120]
[321450883,1712196657483,-151.0,0.00054644,120]
[321450884,1712196657492,-151.0,0.00054644,120]
[321450885,1712196657504,-87072.78945988,0.00054644,45]
[321450886,1712196657513,-774.90990848,0.00054646,45]
[321450887,1712196657523,-30467.23435936,0.00054649,45]
[321450888,1712196657532,-151.0,0.00054649,120]
[321450889,1712196657542,-182.590521,0.00054649,120]
[321450890,1712196657552,-151.0,0.00054649,120]
[321450891,1712196657562,-151.0,0.00054649,120]
[321450892,1712196657571,-151.0,0.00054649,120]
[321450893,1712196657580,-151.0,0.00054649,120]
[321450894,1712196657590,-203.179575,0.00054649,120]
[321450895,1712196657599,-151.0,0.00054649,120]
[321450896,1712196657610,-938.115971,0.00054649,120]
[321450897,1712196657619,-151.0,0.00054649,7]
[321450898,1712196657629,-151.0,0.00054649,7]
[321450899,1712196657639,-323.357105,0.00054649,120]
[321450900,1712196657648,-323.357105,0.00054649,120]
[321450901,1712196657658,-151.0,0.00054649,120]
[321450902,1712196657667,-151.0,0.00054649,120]
[321450903,1712196657675,-151.0,0.00054649,120]
[321450904,1712196657685,-151.0,0.00054649,120]
[321450905,1712196657695,-151.0,0.00054649,120]
[321450906,1712196657705,-156.82969,0.00054649,45]
[321450907,1712196657715,-151.0,0.00054649,120]
[321450908,1712196657725,-185.406329,0.00054649,120]
[321450909,1712196657737,-151.778016,0.00054649,7]
[321450910,1712196657751,-185.406329,0.00054649,120]
[321450911,1712196657762,-151.0,0.00054649,60]
[321450912,1712196657771,-774.90990848,0.00054649,45]
[321450913,1712196657782,-30467.23435936,0.0005465,45]
[321450914,1712196657791,-170.67025145,0.00054651,45]
[321450915,1712196657801,-499.62114364,0.00054653,45]
[321450916,1712196657810,-1044.22073783,0.00054653,45]
[321450917,1712196657821,-151.0,0.00054654,120]
[321450918,1712196657831,-151.0,0.00054654,120]
[321450919,1712196657841,-151.0,0.00054654,120]
[321450920,1712196657850,-87072.78945988,0.00054654,45]
[321450921,1712196657860,-1044.22073783,0.00054654,45]
[321450922,1712196657870,-1044.22073783,0.00054655,45]
[321450923,1712196657880,-604.22994504,0.00054663,60]
[321450924,1712196657890,-197.97595336,0.00054664,60]
[321450925,1712196657900,-292.23916669,0.00054683,60]
[321450926,1712196657911,-150702.87194345,0.00054688,120]
[321450927,1712196657920,-197.97595336,0.00054689,60]
[321450928,1712196657929,-160.20412195,0.00054691,60]
[321450929,1712196658034,-150.0,0.00054695,7]
[321450930,1712196658043,-153.43627197,0.00054695,60]
[321450931,1712196658053,-153.89032083,0.00054708,60]
[321450932,1712196658062,-150.0,0.0005471,7]
[321450933,1712196658072,-300.0,0.00054713,7]
[321450934,1712196658080,-150.0,0.00054722,7]
[321450935,1712196658090,-388.13,0.00054725,120]
[321450936,1712196658099,-292.23916669,0.00054726,60]
[321450937,1712196658109,-150.0,0.00054731,7]
[321450938,1712196658118,-8933.08628707,0.00054735,120]
[321450939,1712196658127,-388.42808273,0.00054735,60]
[321450940,1712196658137,-197.97595336,0.00054743,60]
[321450941,1712196658146,-2923.05947,0.00054752,30]
[321450942,1712196658156,-150.0,0.00054754,120]
[321450943,1712196658164,-211.99904312,0.00054754,60]
[321450944,1712196658173,-150.0,0.00054755,7]
[321450945,1712196658182,-150.0,0.0005476,7]
[321450946,1712196658191,-373.752593,0.00054762,35]
[321450947,1712196658200,-16874.51635252,0.00054762,35]
[321450948,1712196658243,-8125.48364748,0.00054762,35]
[321450949,1712196658253,-15143.10740938,0.00054762,35]
[321450950,1712196658264,-515.29338044,0.00054762,35]
[321450951,1712196658287,-150.33,0.00041,2]
[321450952,1712196658298,-7854.76906174,0.00054762,35]
[321450953,1712196658310,-1486.83014844,0.00054762,35]
[321450954,1712196658320,-2197.15897014,0.00054762,35]
[321450955,1712196658330,-511.62747982,0.00054762,35]
[321450956,1712196658339,-154.29309457,0.00054767,120]
[321450957,1712196658348,-973.63738149,0.00054767,120]
[321450958,1712196658357,-152.06145661,0.00054767,120]
[321450959,1712196658366,-153.54975419,0.00054773,60]
[321450960,1712196658375,-150.0,0.00054775,7]
[321450961,1712196658384,-2218.06771474,0.0005478,120]
[321450962,1712196658397,-3545.23258283,0.0005478,120]
[321450963,1712196658409,-2646.48055505,0.0005478,120]
[321450964,1712196658431,-171.78036031,0.000249,2]
[321450965,1712196658440,-617.11374317,0.0005478,120]
[321450966,1712196658453,-5550.42872355,0.0005478,120]
[321450967,1712196659109,-283.90811063,0.00024897,2]
[321450968,1712196659118,-150.33,0.00041,2]
[321450969,1712196659128,-150.33,0.00041,2]
[321450970,1712196659137,-150.33,0.00041,2]
[321450971,1712196659147,-150.33,0.00041,2]
[321450972,1712196659156,-149.03998437,0.00041,2]
[321450973,1712196659199,-1.29001563,0.00041,2]
[321450974,1712196659209,-150.33,0.00041,2]
[321450975,1712196659218,-150.33,0.00041,2]
[321450976,1712196659228,-150.33,0.00041,2]
[321450977,1712196659237,-101.40754126,0.00041,2]
[321450978,1712196660118,-48.92245874,0.00041,2]
[321450979,1712196660127,-150.33,0.00041,2]
[321450980,1712196660137,-150.33,0.00041,2]
[321450981,1712196660146,-150.33,0.00041,2]
[321450982,1712196660155,-150.33,0.00041,2]
[321450983,1712196660165,-150.33,0.00041,2]
[321450984,1712196660174,-150.33,0.00041,2]
[321450985,1712196660183,-150.33,0.00041,2]
[321450986,1712196660192,-150.33,0.00041,2]
[321450987,1712196660201,-150.33,0.00041,2]
[321450988,1712196660210,-150.33,0.00041,2]
[321450989,1712196660219,-150.33,0.00041,2]
[321450990,1712196660229,-3066.59144822,0.00047624,42]
[321450991,1712196756205,150.0,0.00040724,30]
[321450992,1712196756927,150.0,0.00040724,30]
[321450993,1712196757461,150.0,0.00040724,30]
[321450994,1712196758072,151.2,0.00040724,30]
[321450995,1712196761242,168.0,0.00040724,30]
[321450997,1712196941932,806.0,0.00040244,30]
[321450998,1712196985885,250.0,0.00023,3]
[321450999,1712197045129,862.71024584,0.00023,4]
[321451000,1712197059651,862.71024584,0.00023,4]
[321451001,1712197063756,187.0,0.00040244,30]
[321451002,1712197547674,806.0,0.0004021,30]
[321451003,1712197643113,-319.72315139,0.00024395,2]
[321451004,1712197651122,-236.19753724,0.00024395,2]
[321451005,1712197665111,293.0,0.0004021,30]
[321451006,1712197756283,204.0,0.0004021,120]
[321451014,1712197831597,-150.0,0.00024394,2]
[321451015,1712197831606,-1487.5,0.00024394,2]
[321451016,1712197831940,-2852.85829333,0.00024394,2]
[321451017,1712197831994,-906.32460432,0.00024394,2]
[321451027,1712197837630,-736.67710235,0.00024394,2]
[321451028,1712197837640,-5049.26801137,0.00024395,2]
[321451029,1712197837651,-2360.04778688,0.00024494,2]
[321451030,1712197837662,-6899.05461592,0.00024495,2]